bitfinex-derivatives/quotes_ETHF0:USTF0_20210407
["timestamp","ask_amount","ask_price","bid_price","bid_amount"]
[1617800328983,32.0,1981.8,1980.7,2.90695]
[1617800330586,2.90695,1980.8,1980.7,2.90695]
[1617800332688,4.85505,1980.8,1980.2,1.0]
[1617800334490,1.9481,1980.8,1980.4,2.90695]
[1617800335290,2.0775,1981.2,1980.4,2.90695]
[1617800335890,86.2648,1981.5,1980.4,2.90695]
[1617800336091,2.0,1982.0,1980.4,2.90695]
[1617800336421,1.0197,1982.4,1980.4,2.90695]
[1617800336422,25.68325,1982.9,1980.9,79.8589]
[1617800336632,17.10055,1981.9,1981.8,2.90695]
[1617800336830,2.90695,1981.9,1981.8,5.99685]
[1617800339592,13.2428,1982.8,1981.8,5.99685]
[1617800340092,13.2428,1982.8,1982.0,78.823]
[1617800340393,25.68325,1982.9,1982.0,78.823]
[1617800340695,25.68325,1982.9,1982.7,2.90695]
[1617800340895,25.68325,1982.9,1982.7,5.23645]
[1617800342594,2.90695,1982.8,1982.7,2.90695]
[1617800342794,2.90695,1982.8,1982.7,5.83105]
[1617800344697,2.90695,1982.8,1982.7,2.90695]
[1617800345097,5.14625,1982.8,1982.7,2.90695]
[1617800346115,2.90695,1982.8,1982.7,2.90695]
[1617800349804,5.73665,1982.8,1982.0,78.823]
[1617800350008,5.73665,1982.8,1981.0,81.1351]
[1617800350202,5.73665,1982.8,1981.0,79.1351]
[1617800350605,2.8297,1982.8,1982.1,2.90695]
[1617800352616,2.90695,1982.2,1982.1,2.90695]
[1617800362527,2.90695,1982.2,1981.1,60.2008]
[1617800362729,2.7865,1982.4,1981.4,2.90695]
[1617800362932,81.5161,1982.1,1981.4,2.90695]
[1617800364740,2.90695,1981.6,1981.4,2.90695]
[1617800364941,5.31895,1981.6,1981.4,2.90695]
[1617800365941,2.412,1981.6,1981.4,2.90695]
[1617800366243,2.7865,1982.4,1981.4,2.90695]
[1617800366542,13.3316,1982.7,1981.4,2.90695]
[1617800366740,13.3316,1982.7,1982.0,2.90695]
[1617800367642,14.3349,1982.7,1982.0,2.90695]
[1617800368142,61.5215,1982.2,1980.9,5.00697874]
[1617800368441,63.4754,1982.2,1980.6,5.01221596]
[1617800368843,63.4754,1982.2,1981.2,2.90695]
[1617800369243,64.4715,1982.2,1981.2,3.90385]
[1617800370044,63.4754,1982.2,1981.2,2.90695]
[1617800370846,63.4754,1982.2,1981.4,2.90695]
[1617800371846,2.9513,1982.2,1981.4,3.92905]
[1617800372846,2.90695,1981.5,1981.4,3.92905]
[1617800373047,3.91155,1981.5,1981.4,3.92905]
[1617800374248,2.90695,1981.5,1981.4,2.90695]
[1617800375247,3.91755,1981.5,1981.4,3.90495]
[1617800375851,2.90695,1981.5,1981.4,2.90695]
[1617800376864,2.90695,1981.5,1981.2,2.90695]
[1617800378867,2.90695,1981.3,1981.0,2.90695]
[1617800380967,2.90695,1981.1,1981.0,2.90695]
[1617800381267,4.98025,1981.1,1981.0,2.90695]
[1617800384674,4.98025,1981.1,1980.2,1.0]
[1617800384883,2.90695,1980.3,1980.2,3.90695]
[1617800385075,5.42505,1980.3,1980.2,3.90695]
[1617800392992,5.42505,1980.3,1980.2,1.0]
[1617800395496,5.42505,1980.3,1980.2,1.9957]
[1617800396396,5.42505,1980.3,1980.2,1.0]
[1617800396797,2.90695,1980.3,1980.2,1.0]
[1617800398500,2.90695,1980.3,1980.2,3.6713]
[1617800399102,2.90695,1980.3,1980.2,6.57825]
[1617800400301,2.90695,1980.3,1980.2,3.90695]
[1617800401002,2.90695,1980.3,1980.2,1.0]
[1617800402751,32.90695,1980.3,1979.2,65.057]
[1617800402975,32.90695,1980.3,1979.1,5.01879967]
[1617800403134,32.90695,1980.3,1979.1,2.90695]
[1617800403135,2.90695,1979.2,1979.1,2.90695]
[1617800403328,4.98175,1979.2,1979.1,2.90695]
[1617800410122,4.98175,1979.2,1977.7,79.03119601]
[1617800410721,4.98175,1979.2,1977.7,74.0097]
[1617800411221,2.0748,1979.2,1978.7,2.90695]
[1617800411422,113.8557,1980.0,1978.7,2.90695]
[1617800412526,114.8771,1980.0,1978.7,2.90695]
[1617800412727,113.8557,1980.0,1978.7,2.90695]
[1617800413226,2.90695,1978.8,1978.7,2.90695]
[1617800415130,2.2844,1978.9,1978.7,2.90695]
[1617800416032,2.7509,1979.4,1978.8,63.6156]
[1617800416231,13.4655,1980.2,1978.8,63.6156]
[1617800416433,13.4655,1980.2,1978.8,64.6197]
[1617800416633,13.4655,1980.2,1978.8,63.6156]
[1617800416835,14.4743,1980.2,1978.8,63.6156]
[1617800417134,14.4743,1980.2,1979.6,2.90695]
[1617800417934,13.4655,1980.2,1979.6,2.90695]
[1617800419135,13.4655,1980.2,1979.9,2.90695]
[1617800421137,2.90695,1980.0,1979.9,2.90695]
[1617800421450,5.65965,1980.0,1978.9,2.0]
[1617800422339,5.65965,1980.0,1978.8,63.6156]
[1617800423239,2.7527,1980.0,1979.3,2.90695]
[1617800424040,61.7846,1979.8,1979.3,2.90695]
[1617800424639,91.7846,1979.8,1977.8,64.9518]
[1617800425040,91.7846,1979.8,1977.9,2.0]
[1617800425238,61.7846,1979.8,1979.0,2.90695]
[1617800425540,34.7527,1980.0,1979.0,2.90695]
[1617800426948,34.7527,1980.0,1978.7,76.2167]
[1617800427140,34.7527,1980.0,1978.8,2.90695]
[1617800427549,30.0,1979.7,1978.8,2.90695]
[1617800428241,30.0,1979.7,1977.8,2.0]
[1617800429042,13.9183,1979.6,1977.8,2.0]
[1617800429241,15.8476,1979.6,1978.5,2.90695]
[1617800429444,30.0,1979.5,1978.5,2.90695]
[1617800430345,32.0,1979.5,1978.5,2.90695]
[1617800430947,61.2425,1978.9,1976.9,5.03769863]
[1617800431145,94.7097,1978.9,1976.9,5.03769863]
[1617800431347,94.7097,1978.9,1978.1,3.91135]
[1617800431548,94.7097,1978.9,1978.1,2.90695]
[1617800432452,96.7097,1978.9,1978.1,2.90695]
[1617800433053,95.7013,1978.9,1978.1,2.90695]
[1617800433251,2.90695,1978.2,1978.1,2.90695]
[1617800433454,4.91405,1978.2,1978.1,2.90695]
[1617800433652,4.91405,1978.2,1976.7,58.8408]
[1617800433855,4.91405,1978.2,1976.7,60.8408]
[1617800434054,4.91405,1978.2,1976.7,2.0]
[1617800434355,70.4196,1978.1,1976.7,2.0]
[1617800435356,70.4196,1978.1,1977.3,2.90695]
[1617800436259,71.4377,1978.1,1977.3,2.90695]
[1617800436556,70.4196,1978.1,1977.3,2.90695]
[1617800437257,70.4196,1978.1,1977.1,2.90695]
[1617800437258,2.90695,1977.4,1977.1,2.90695]
[1617800437457,5.27905,1977.4,1977.1,2.90695]
[1617800439157,5.27905,1977.4,1976.2,2.0]
[1617800439357,2.3721,1977.4,1977.0,2.90695]
[1617800439963,2.3721,1977.4,1976.2,2.0]
[1617800440163,2.3721,1977.4,1977.0,1.0096]
[1617800441467,2.90695,1977.1,1976.9,2.90695]
[1617800443372,2.90695,1977.1,1976.8,0.02]
[1617800445276,2.90695,1976.9,1976.8,0.02]
[1617800445585,4.87555,1976.9,1976.8,0.02]
[1617800449179,4.87555,1976.9,1976.8,1.0359]
[1617800449479,2.90695,1976.9,1976.8,0.02]
[1617800449779,4.98105,1976.9,1976.8,0.02]
[1617800455097,2.90695,1976.9,1976.8,0.02]
[1617800456193,5.48255,1976.9,1976.8,0.02]
[1617800456394,35.48255,1976.9,1976.8,0.02]
[1617800456795,37.48255,1976.9,1976.8,0.02]
[1617800456995,37.48255,1976.9,1974.5,67.8299]
[1617800457195,62.7535,1975.7,1974.5,67.8299]
[1617800457498,64.72,1975.7,1975.3,2.90695]
[1617800459298,64.72,1975.7,1975.3,3.90505]
[1617800459498,2.90695,1975.4,1975.1,3.90695]
[1617800459698,2.90695,1975.4,1975.1,3.92695]
[1617800460300,2.90695,1975.4,1975.1,1.02]
[1617800461200,2.90695,1975.4,1974.5,67.8299]
[1617800461401,2.90695,1974.6,1974.5,67.8299]
[1617800461701,78.25075,1974.6,1974.0,2.90695]
[1617800463400,2.90695,1974.1,1974.0,2.90695]
[1617800463703,2.90695,1974.1,1973.2,1.0171]
[1617800463704,5.85625,1974.1,1973.2,1.0171]
[1617800464212,78.4959,1973.3,1973.2,1.0171]
[1617800464412,81.2609,1973.3,1972.8,5.09374887]
[1617800464613,81.2609,1973.3,1972.7,5.09622426]
[1617800465004,81.2409,1973.3,1972.6,1.0]
[1617800465407,2.90695,1972.7,1972.6,1.0]
[1617800465614,5.43765,1972.7,1972.6,1.0]
[1617800466016,2.5307,1972.7,1972.6,1.0]
[1617800466507,1.5307,1972.7,1972.6,1.0]
[1617800466712,63.2096,1973.3,1972.6,1.0]
[1617800467410,3.0047,1974.6,1973.2,2.90695]
[1617800467630,62.5354,1974.8,1973.2,5.74065]
[1617800468215,1.0102,1975.7,1973.2,5.74065]
[1617800468469,1.0102,1975.7,1973.5,68.7457]
[1617800468640,62.5101,1976.1,1973.5,68.7457]
[1617800469524,62.5101,1976.1,1974.6,2.90695]
[1617800469716,30.0,1976.0,1974.6,2.1972]
[1617800469916,62.5101,1976.1,1974.6,2.1972]
[1617800473620,84.6535,1976.8,1975.4,2.90695]
[1617800473820,84.6535,1976.8,1975.4,5.77725]
[1617800475523,2.90695,1975.5,1975.4,5.77725]
[1617800478124,84.6535,1976.8,1975.4,5.77725]
[1617800479626,84.6535,1976.8,1975.9,2.90695]
[1617800479927,27.9045,1976.8,1975.9,5.66635]
[1617800480829,27.9045,1976.8,1975.9,6.67115]
[1617800481027,13.9693,1976.8,1975.9,6.67115]
[1617800481526,13.9693,1976.8,1976.3,2.90695]
[1617800481839,13.9693,1976.8,1976.3,5.43125]
[1617800483630,2.90695,1976.4,1976.3,5.43125]
[1617800484933,3.91385,1976.4,1976.3,5.43125]
[1617800485133,2.90695,1976.4,1976.3,5.43125]
[1617800485536,2.90695,1976.6,1976.3,5.43125]
[1617800487639,2.90695,1976.6,1976.5,2.90695]
[1617800489646,2.90695,1976.8,1976.5,2.90695]
[1617800491152,2.72525,1976.8,1976.5,2.90695]
[1617800491452,13.5526,1979.0,1976.5,2.90695]
[1617800491649,13.2886,1978.9,1977.1,2.90695]
[1617800491849,13.2886,1978.9,1977.1,5.83575]
[1617800493651,2.90695,1977.2,1977.1,5.83575]
[1617800495053,13.2886,1978.9,1977.1,5.83575]
[1617800495653,13.2886,1978.9,1977.5,2.90695]
[1617800495853,13.2886,1978.9,1977.5,6.01285]
[1617800497758,13.2886,1978.9,1977.9,2.90695]
[1617800497956,13.2886,1978.9,1977.9,5.10705]
[1617800499761,2.90695,1978.0,1977.9,5.10705]
[1617800501164,2.90695,1978.0,1977.9,2.90695]
[1617800501363,2.90695,1978.0,1976.7,72.8511]
[1617800501571,2.90695,1978.0,1975.3,0.9974]
[1617800501764,84.6657,1977.8,1977.5,2.90695]
[1617800502263,2.9748,1977.9,1977.5,2.90695]
[1617800503866,2.90695,1977.6,1977.5,2.90695]
[1617800506669,2.90695,1977.6,1975.6,2.0]
[1617800506969,72.0612,1977.3,1975.6,2.0]
[1617800507173,74.438,1977.3,1975.6,2.0]
[1617800507668,74.438,1977.3,1976.9,2.90695]
[1617800509672,2.3768,1977.3,1976.9,2.90695]
[1617800509872,2.90695,1977.0,1976.9,2.90695]
[1617800511874,74.5126,1977.7,1976.9,2.90695]
[1617800512075,74.5126,1977.7,1976.9,5.26235]
[1617800512344,30.0,1979.6,1976.9,5.26235]
[1617800512516,64.8098,1979.1,1976.9,5.26235]
[1617800513803,64.8098,1979.1,1978.4,2.90695]
[1617800513981,64.8098,1979.1,1978.4,5.75825]
[1617800514382,14.0949,1979.3,1978.4,5.75825]
[1617800514584,61.2301,1980.1,1978.4,5.75825]
[1617800515783,61.2301,1980.1,1979.0,2.90695]
[1617800515984,61.2301,1980.1,1979.0,5.65755]
[1617800516184,26.419,1980.3,1979.0,5.65755]
[1617800516382,26.419,1980.3,1979.1,61.2647]
[1617800517986,26.419,1980.3,1979.3,2.90695]
[1617800518186,79.5026,1979.9,1977.8,3.0353]
[1617800518386,82.0808,1979.9,1977.8,3.0353]
[1617800519388,82.0808,1979.9,1977.7,56.7406]
[1617800519790,82.0808,1979.9,1978.4,2.90695]
[1617800520890,2.0,1979.8,1978.4,2.90695]
[1617800521090,2.0,1979.8,1977.7,56.7406]
[1617800521491,32.0,1979.8,1977.7,56.7406]
[1617800522114,32.0,1979.8,1975.7,7.66461076]
[1617800522396,61.7013,1978.9,1976.1,64.46]
[1617800522593,63.5916,1978.9,1976.1,64.46]
[1617800523296,27.6382,1978.8,1976.1,64.46]
[1617800523495,28.6638,1978.8,1976.1,64.46]
[1617800523795,27.6382,1978.8,1977.5,2.90695]
[1617800524339,27.6382,1978.8,1976.1,64.46]
[1617800524551,29.6382,1978.8,1976.1,63.4338]
[1617800524900,30.0,1978.7,1976.1,63.4338]
[1617800525202,2.0,1978.6,1976.1,63.4338]
[1617800525447,30.0,1978.5,1976.1,63.4338]
[1617800525620,30.0,1978.5,1975.4,2.0]
[1617800525621,30.0,1978.3,1975.4,2.0]
[1617800525846,30.0,1978.3,1976.7,2.90695]
[1617800525847,83.894,1977.6,1976.7,2.90695]
[1617800526033,86.9372,1977.6,1976.7,2.90695]
[1617800527500,3.0432,1977.6,1976.7,2.90695]
[1617800527699,2.0,1978.0,1976.7,2.90695]
[1617800527899,61.3976,1978.1,1977.3,2.90695]
[1617800528100,61.3976,1978.1,1977.3,5.88085]
[1617800529900,61.3976,1978.1,1977.8,2.90695]
[1617800530101,61.3976,1978.1,1977.8,5.26445]
[1617800530601,57.6382,1978.8,1977.8,5.26445]
[1617800530802,27.6382,1978.8,1977.8,5.26445]
[1617800531902,27.6382,1978.8,1978.5,2.90695]
[1617800532405,27.6382,1978.8,1977.3,82.1877]
[1617800533304,62.7034,1979.2,1977.3,82.1877]
[1617800533804,62.7034,1979.2,1978.4,2.90695]
[1617800534806,60.7034,1979.2,1978.4,2.90695]
[1617800535806,2.90695,1978.5,1978.2,2.90695]
[1617800536809,2.90695,1978.5,1977.3,77.2138]
[1617800537008,2.90695,1978.5,1976.1,1.0105]
[1617800537209,65.0705,1978.2,1976.1,1.0105]
[1617800537408,67.7462,1978.2,1976.1,1.0105]
[1617800538008,2.90695,1977.7,1977.5,2.90695]
[1617800539110,5.96285,1977.7,1977.5,2.90695]
[1617800539912,5.96285,1977.7,1977.3,2.90695]
[1617800540812,2.90695,1977.7,1977.3,2.90695]
[1617800542013,2.90695,1977.7,1977.6,2.90695]
[1617800542215,2.90695,1977.7,1977.6,4.77825]
[1617800543617,65.8608,1978.6,1977.6,4.77825]
[1617800544020,2.90695,1978.5,1978.4,2.90695]
[1617800544218,2.90695,1978.5,1977.6,1.8713]
[1617800544917,2.90695,1978.5,1977.3,2.0]
[1617800546025,2.90695,1978.5,1978.4,2.90695]
[1617800547357,90.8024,1979.7,1978.4,4.95885]
[1617800548119,120.8024,1979.7,1978.4,2.0519]
[1617800548320,90.8024,1979.7,1978.4,2.0519]
[1617800548518,90.8024,1979.7,1978.0,80.5887]
[1617800550121,90.8024,1979.7,1978.5,2.90695]
[1617800550322,90.8024,1979.7,1978.5,4.88025]
[1617800550623,32.0,1979.6,1978.5,1.9733]
[1617800550822,2.0,1979.6,1978.5,1.9733]
[1617800552023,32.0,1979.6,1978.6,2.90695]
[1617800552223,32.0,1979.6,1978.0,80.5887]
[1617800553227,90.8024,1979.7,1978.0,80.5887]
[1617800554029,90.8024,1979.7,1978.8,2.90695]
[1617800554229,90.8024,1979.7,1978.8,5.95425]
[1617800555329,13.0384,1979.7,1978.8,5.95425]
[1617800555531,15.0079,1980.1,1978.9,62.1887]
[1617800555532,13.0079,1980.1,1978.9,62.1887]
[1617800555739,2.0,1980.5,1978.9,62.1887]
[1617800555945,30.0,1980.9,1978.9,62.1887]
[1617800556232,30.0,1980.9,1979.3,2.90695]
[1617800556433,30.0,1980.9,1979.3,5.26305]
[1617800556632,75.0267,1981.0,1979.3,5.26305]
[1617800558133,2.90695,1979.4,1979.3,5.26305]
[1617800558336,75.0267,1981.0,1979.3,5.26305]
[1617800560035,2.90695,1979.5,1979.3,5.26305]
[1617800560245,2.90695,1979.5,1979.3,2.90695]
[1617800562141,77.0267,1981.0,1979.3,2.90695]
[1617800564242,77.0267,1981.0,1979.5,2.90695]
[1617800564442,107.0267,1981.0,1979.5,2.90695]
[1617800565343,107.0267,1981.0,1978.9,64.1887]
[1617800565643,110.1022,1981.0,1978.9,64.1887]
[1617800566342,112.6732,1981.0,1979.3,2.90695]
[1617800567846,110.6732,1981.0,1979.3,2.90695]
[1617800568045,107.5977,1981.0,1979.3,2.90695]
[1617800568247,107.5977,1981.0,1979.8,2.90695]
[1617800569049,2.0,1980.9,1979.8,2.90695]
[1617800569349,2.571,1981.0,1980.1,81.712]
[1617800569648,2.571,1981.0,1980.1,84.1848]
[1617800570249,2.90695,1980.2,1980.1,87.09175]
[1617800571050,16.8107,1982.1,1980.1,87.09175]
[1617800571288,16.8107,1982.1,1980.1,5.37975]
[1617800571492,16.8107,1982.1,1980.9,73.445]
[1617800571691,16.8107,1982.1,1980.9,76.4197]
[1617800572252,2.571,1982.1,1981.1,2.90695]
[1617800572468,14.208,1982.9,1981.1,2.90695]
[1617800572956,25.68325,1983.0,1981.9,69.3726]
[1617800573154,25.68325,1983.0,1981.9,72.232]
[1617800574301,2.90695,1982.0,1981.9,76.14655]
[1617800574957,2.90695,1982.0,1981.9,78.14655]
[1617800576657,25.68325,1983.0,1981.9,78.14655]
[1617800577462,25.68325,1983.0,1981.9,77.13895]
[1617800578264,25.68325,1983.0,1982.7,2.90695]
[1617800578593,25.68325,1983.0,1982.7,5.14335]
[1617800578897,25.68325,1983.0,1982.7,2.2364]
[1617800579373,25.68325,1983.0,1981.9,69.3726]
[1617800579568,30.37715,1983.0,1981.0,2.0]
[1617800579868,28.37715,1983.0,1981.3,83.9544]
[1617800580269,28.37715,1983.0,1982.4,2.90695]
[1617800580569,25.68325,1983.0,1981.9,83.8867]
[1617800581883,25.68325,1983.0,1981.9,85.8867]
[1617800582073,25.68325,1983.0,1981.9,83.8867]
[1617800582271,25.68325,1983.0,1982.7,2.90695]
[1617800584374,25.68325,1983.0,1982.9,2.90695]
[1617800584573,25.68325,1983.0,1982.9,4.82925]
[1617800584774,25.68325,1983.0,1982.9,68.62055]
[1617800588076,23.05645,1983.0,1982.9,68.62055]
[1617800588275,22.35645,1983.0,1982.9,68.62055]
[1617800588493,5.43815,1983.0,1982.9,68.62055]
[1617800588681,2.90695,1983.7,1982.9,4.82925]
[1617800588892,2.90695,1983.7,1983.0,2.0]
[1617800589478,13.2732,1984.8,1983.0,2.0]
[1617800589704,13.2732,1984.8,1983.9,79.4649]
[1617800589899,13.2732,1984.8,1983.9,82.1391]
[1617800590687,13.2732,1984.8,1984.1,2.90695]
[1617800592784,13.2732,1984.8,1984.5,2.90695]
[1617800592985,13.2732,1984.8,1984.5,5.48455]
[1617800593283,13.2732,1984.8,1984.5,2.5776]
[1617800594133,13.2732,1984.8,1983.0,2.0]
[1617800594306,16.3176,1984.8,1983.3,83.9979]
[1617800594690,16.3176,1984.8,1983.7,2.90695]
[1617800595090,16.3176,1984.8,1983.3,83.9979]
[1617800595789,80.3382,1985.6,1983.3,83.9979]
[1617800595790,82.4771,1985.6,1983.3,83.9979]
[1617800595989,80.3382,1985.6,1983.3,86.7119]
[1617800596690,13.5736,1985.9,1984.6,2.90695]
[1617800596892,13.5136,1985.8,1984.6,5.30605]
[1617800598590,13.5136,1985.8,1984.9,2.90695]
[1617800599291,13.5736,1985.9,1984.9,2.90695]
[1617800600292,13.5736,1985.9,1984.4,62.8142]
[1617800600491,15.5668,1985.9,1984.4,62.8142]
[1617800600792,15.5668,1985.9,1984.7,2.90695]
[1617800601592,13.5736,1985.9,1984.7,2.90695]
[1617800602705,2.90695,1984.8,1984.7,2.90695]
[1617800607999,2.90695,1984.8,1983.8,83.0588]
[1617800608801,2.7372,1985.1,1984.3,2.90695]
[1617800609404,57.2136,1985.5,1984.3,2.90695]
[1617800609805,57.2136,1985.5,1984.3,6.00645]
[1617800610004,13.1666,1985.8,1984.3,4.99485]
[1617800610208,13.1666,1985.8,1984.5,63.4199]
[1617800610905,13.1666,1985.8,1984.9,2.90695]
[1617800611106,14.1648,1985.8,1984.9,4.97705]
[1617800611305,13.1666,1985.8,1984.9,4.97705]
[1617800611507,13.5736,1985.9,1984.9,4.97705]
[1617800612109,66.9158,1985.8,1984.9,4.97705]
[1617800612340,2.9677,1985.8,1984.9,2.90695]
[1617800612709,2.90695,1985.0,1984.9,2.90695]
[1617800615826,5.43595,1985.0,1983.5,68.6139]
[1617800616721,2.529,1985.0,1984.3,2.90695]
[1617800617220,67.3619,1985.4,1984.3,2.90695]
[1617800617720,67.3619,1985.4,1984.3,5.95865]
[1617800618823,13.8515,1985.8,1984.9,2.90695]
[1617800619126,13.8515,1985.8,1984.9,5.14415]
[1617800620725,13.8515,1985.8,1985.1,2.90695]
[1617800621729,13.5736,1985.9,1985.1,2.90695]
[1617800622734,13.5736,1985.9,1985.4,2.90695]
[1617800624052,13.5736,1985.9,1985.4,5.18975]
[1617800624484,14.5933,1985.9,1985.4,5.18975]
[1617800624633,13.5736,1985.9,1985.4,5.18975]
[1617800624946,13.5736,1985.9,1985.7,2.90695]
[1617800626535,13.5736,1985.9,1984.9,2.2372]
[1617800626735,57.1552,1985.8,1984.4,2.90695]
[1617800627552,2.0,1985.7,1984.4,2.90695]
[1617800627760,4.3997,1985.7,1984.4,2.90695]
[1617800628661,2.0,1985.7,1984.4,2.90695]
[1617800628856,2.0,1985.7,1983.9,75.8209]
[1617800628857,2.0,1985.7,1984.8,2.90695]
[1617800629051,13.5736,1985.9,1984.8,2.90695]
[1617800630845,13.5736,1985.9,1984.5,2.4208]
[1617800630846,13.5736,1985.9,1985.7,2.90695]
[1617800631044,13.5736,1985.9,1985.7,5.07505]
[1617800634848,2.90695,1985.8,1985.7,5.07505]
[1617800637153,2.90695,1985.8,1984.6,2.0]
[1617800637452,2.90695,1985.8,1984.5,63.4288]
[1617800637653,2.90695,1985.8,1983.6,3.0145]
[1617800637855,84.3797,1985.7,1983.6,3.0145]
[1617800638656,2.90695,1985.8,1983.6,3.0145]
[1617800638856,15.6612,1985.9,1985.3,2.90695]
[1617800639056,13.5736,1985.9,1985.3,2.90695]
[1617800639255,13.5736,1985.9,1984.7,2.7524]
[1617800640157,13.5736,1985.9,1984.1,83.1358]
[1617800640960,2.90695,1985.1,1985.0,2.90695]
[1617800643165,3.89925,1985.1,1985.0,2.90695]
[1617800643365,2.90695,1985.1,1983.6,3.0145]
[1617800643767,2.90695,1985.1,1983.6,2.0]
[1617800644269,2.90695,1985.1,1983.3,2.0]
[1617800644968,2.2483,1985.2,1984.7,2.90695]
[1617800645869,2.2483,1985.2,1983.3,2.0]
[1617800646474,57.7734,1984.5,1983.3,2.0]
[1617800646670,59.6729,1984.5,1983.3,2.0]
[1617800646872,59.6729,1984.5,1983.9,2.90695]
[1617800649072,59.6729,1984.5,1982.5,1.0188]
[1617800649073,2.90695,1984.0,1983.7,2.90695]
[1617800649280,5.07805,1984.0,1983.7,2.90695]
[1617800650376,2.90695,1984.0,1983.7,2.90695]
[1617800650877,2.90695,1984.0,1983.9,2.90695]
[1617800651078,2.90695,1984.0,1983.9,4.79975]
[1617800652177,2.90695,1984.0,1983.9,2.90695]
[1617800652976,2.90695,1984.0,1983.7,2.90695]
[1617800654377,2.90695,1984.0,1983.7,4.90695]
[1617800654778,13.3923,1985.1,1983.7,4.90695]
[1617800654979,13.3923,1985.1,1984.7,2.90695]
[1617800655179,13.3923,1985.1,1984.7,5.75685]
[1617800656882,16.29925,1985.1,1985.0,2.90695]
[1617800657583,16.29925,1985.1,1983.8,81.6718]
[1617800657785,16.29925,1985.1,1983.8,80.6685]
[1617800657983,79.5122,1985.0,1983.3,2.0]
[1617800658898,79.5122,1985.0,1984.1,2.90695]
[1617800659886,109.5122,1985.0,1984.1,2.90695]
[1617800660810,109.5122,1985.0,1982.7,2.0]
[1617800660811,30.0,1984.8,1982.7,2.0]
[1617800661009,34.7555,1984.8,1983.7,2.90695]
[1617800662888,2.90695,1983.8,1983.7,2.90695]
[1617800663089,5.60565,1983.8,1983.7,2.90695]
[1617800663313,5.60565,1983.8,1982.5,1.0188]
[1617800663314,74.2133,1983.6,1982.5,1.0188]
[1617800663767,74.2133,1983.6,1981.6,2.0]
[1617800663934,74.2133,1983.6,1981.4,5.04102396]
[1617800664159,74.2133,1983.6,1981.3,0.9953]
[1617800664160,74.2133,1983.6,1981.3,6.03958149]
[1617800664297,74.2133,1983.6,1982.0,0.39578669]
[1617800664836,74.2133,1983.6,1981.5,2.0]
[1617800664837,30.0,1983.5,1981.5,2.0]
[1617800665132,30.0,1983.5,1982.7,2.90695]
[1617800665798,30.0,1983.5,1981.5,2.0]
[1617800665999,30.0,1983.5,1981.3,0.9953]
[1617800666499,43.4233,1983.5,1981.3,0.9953]
[1617800666897,13.5903,1983.4,1981.3,0.9953]
[1617800667099,16.3678,1983.4,1981.3,0.9953]
[1617800668499,16.3678,1983.4,1981.4,5.08076694]
[1617800668697,16.3678,1983.4,1981.5,2.0]
[1617800668900,16.3678,1983.4,1981.5,7.07839491]
[1617800669100,16.3678,1983.4,1983.1,2.90695]
[1617800670310,16.3678,1983.4,1982.2,76.2319]
[1617800671100,2.90695,1982.8,1982.7,2.90695]
[1617800671300,5.74935,1982.8,1982.7,2.90695]
[1617800671500,5.74935,1982.8,1982.2,76.2319]
[1617800671704,5.74935,1982.8,1981.7,2.0]
[1617800671902,5.74935,1982.8,1981.3,6.08079935]
[1617800672303,5.74935,1982.8,1981.3,2.9953]
[1617800673004,5.74935,1982.8,1982.7,2.90695]
[1617800673506,2.90695,1982.8,1982.7,2.90695]
[1617800673805,13.5903,1983.4,1982.7,2.90695]
[1617800674005,13.5903,1983.4,1982.7,5.86035]
[1617800675007,13.5903,1983.4,1983.3,2.90695]
[1617800675209,13.5903,1983.4,1983.3,6.01045]
[1617800675517,9.2159,1983.4,1983.3,6.01045]
[1617800675707,2.90695,1984.1,1983.3,6.01045]
[1617800677007,2.90695,1984.1,1984.0,2.90695]
[1617800677209,2.90695,1984.1,1984.0,5.01985]
[1617800677708,75.48,1985.1,1984.0,5.01985]
[1617800678508,105.48,1985.1,1984.0,5.01985]
[1617800679107,105.48,1985.1,1984.2,2.90695]
[1617800680307,30.0,1984.9,1984.2,2.90695]
[1617800680610,2.0,1984.8,1984.2,2.90695]
[1617800680810,32.0,1984.8,1983.1,57.7869]
[1617800681009,32.0,1984.8,1983.4,2.90695]
[1617800683111,2.90695,1983.5,1983.4,2.90695]
[1617800683514,2.90695,1983.5,1983.4,3.92195]
[1617800683813,3.0142,1984.4,1983.4,2.90695]
[1617800684414,3.0142,1984.4,1983.1,57.7869]
[1617800685114,3.0142,1984.4,1983.5,2.90695]
[1617800685314,2.0,1984.8,1983.5,2.90695]
[1617800685514,30.0,1984.7,1983.5,2.90695]
[1617800686415,2.0,1984.6,1983.5,2.90695]
[1617800686615,30.0,1984.5,1983.1,57.7869]
[1617800686816,32.0,1984.5,1983.1,57.7869]
[1617800687217,32.0,1984.5,1983.2,2.90695]
[1617800688516,30.0,1984.5,1983.2,2.90695]
[1617800688717,32.0,1984.5,1983.2,2.90695]
[1617800689117,2.90695,1983.3,1983.2,2.90695]
[1617800695432,2.90695,1983.3,1983.2,3.90075]
[1617800695634,2.90695,1983.3,1983.2,2.90695]
[1617800695836,13.7532,1984.2,1983.2,2.90695]